bitfinex/quotes_SOLUSD_20240626
["timestamp","ask_amount","ask_price","bid_price","bid_amount"]
[1719379476404,7.3003,136.98,136.94,0.34]
[1719379477302,7.2999,136.99,136.94,7.6423]
[1719379477917,7.2994,137.0,136.94,7.6423]
[1719379478115,7.2998,136.99,136.94,7.6423]
[1719379478422,18.246,137.02,136.94,0.17]
[1719379478623,7.301,136.97,136.94,0.17]
[1719379478829,7.3004,136.98,136.94,0.17]
[1719379479614,7.3004,136.98,136.94,0.34]
[1719379479823,7.3009,136.97,136.94,0.34]
[1719379480605,7.3009,136.97,136.94,0.17]
[1719379480805,7.3009,136.97,136.93,21.5499]
[1719379481507,7.61886712,137.04,136.93,21.5499]
[1719379481827,18.2493,137.0,136.93,21.5499]
[1719379482205,7.3015,136.96,136.93,21.5499]
[1719379482419,7.3009,136.97,136.93,21.5499]
[1719379483726,7.3006,136.98,136.93,28.8527]
[1719379484332,7.3009,136.97,136.93,21.5499]
[1719379484830,18.2471,137.01,136.93,21.5499]
[1719379485145,7.3013,136.97,136.93,21.5499]
[1719379485514,18.251,136.98,136.9,22.3807]
[1719379485726,7.302,136.95,136.91,0.17]
[1719379486028,7.62139251,136.99,136.91,0.17]
[1719379486210,7.3009,136.97,136.93,18.257]
[1719379486612,7.62152677,137.0,136.91,0.17]
[1719379486806,7.62152677,137.0,136.91,0.34]
[1719379487117,7.3017,136.96,136.91,7.6438]
[1719379487721,7.3019,136.95,136.9,47.9463]
[1719379487908,18.251,136.98,136.9,40.6419]
[1719379488508,7.302,136.95,136.9,47.9461]
[1719379491539,14.94990599,137.0,136.9,40.6419]
[1719379491836,7.3017,136.96,136.91,7.3039]
[1719379492219,7.3019,136.95,136.9,47.9463]
[1719379493319,7.3027,136.94,136.9,40.6419]
[1719379495627,18.255,136.95,136.9,22.3807]
[1719379497331,7.3033,136.93,136.9,22.3807]
[1719379500517,7.3039,136.92,136.89,0.849019]
[1719379500730,7.3044,136.91,136.89,0.849019]
[1719379501032,7.3046,136.9,136.89,0.849019]
[1719379501814,7.32837922,136.95,136.89,0.849019]
[1719379502014,7.304,136.92,136.89,0.849019]
[1719379502231,7.32837922,136.95,136.89,0.849019]
[1719379502232,18.2564,136.94,136.89,0.849019]
[1719379502429,7.3046,136.9,136.89,0.849019]
[1719379503033,29.4372,136.9,136.89,0.849019]
[1719379503334,67.49557922,136.9,136.89,1.9e-05]
[1719379503534,112.49557922,136.9,136.89,1.9e-05]
[1719379503738,61.32797922,136.9,136.89,1.9e-05]
[1719379503929,45.02297922,136.9,136.89,1.9e-05]
[1719379504242,15.02297922,136.9,136.89,1.9e-05]
[1719379504423,15.36297922,136.9,136.89,1.9e-05]
[1719379504623,35.36297922,136.9,136.89,1.9e-05]
[1719379505318,65.36297922,136.9,136.89,1.9e-05]
[1719379506345,65.36297922,136.9,136.84,0.04330186]
[1719379506346,25.5753,136.85,136.84,0.04330186]
[1719379506521,63.29367922,136.85,136.84,1.86e-06]
[1719379506720,7.3094,136.81,136.8,6.0]
[1719379506915,7.71837736,136.84,136.8,6.0]
[1719379507223,7.3094,136.81,136.8,6.0]
[1719379507740,7.3089,136.82,136.8,6.0]
[1719379507939,7.3094,136.81,136.8,6.0]
[1719379509420,21.8226,136.81,136.75,0.849019]
[1719379509624,7.70941328,136.81,136.75,0.849019]
[1719379509832,7.3115,136.78,136.75,0.849019]
[1719379510240,7.70941328,136.81,136.75,0.849019]
[1719379510439,7.3116,136.77,136.75,0.849019]
[1719379510939,7.3105,136.79,136.75,0.849019]
[1719379511117,7.311,136.78,136.75,0.849019]
[1719379511323,7.3119,136.77,136.75,0.849019]
[1719379511727,7.70941328,136.81,136.75,8.161619]
[1719379512044,7.70941328,136.81,136.75,0.849019]
[1719379512250,7.311,136.79,136.75,0.849019]
[1719379512446,7.70941328,136.81,136.77,25.5896]
[1719379512643,7.62151653,136.82,136.75,0.849019]
[1719379513031,7.62151653,136.82,136.76,21.869]
[1719379513245,18.2634,136.89,136.78,18.277]
[1719379513453,7.3074,136.85,136.79,7.6504]
[1719379513657,7.3068,136.86,136.79,0.34]
[1719379513870,7.61771067,136.87,136.83,15.0367]
[1719379514029,7.70941328,136.88,136.84,1.96026365]
[1719379514341,7.61164789,136.91,136.84,27.53686365]
[1719379514535,7.61164789,136.91,136.85,7.3071]
[1719379514731,14.91584789,136.91,136.86,1.97415239]
[1719379514933,14.91584789,136.91,136.85,7.4771]
[1719379515232,7.3042,136.91,136.86,8.71127633]
[1719379515754,25.97111328,136.9,136.83,15.0367]
[1719379515932,7.3062,136.87,136.83,15.0367]
[1719379516338,15.01441328,136.9,136.84,7.3073]
[1719379516650,15.01441328,136.9,136.85,0.17]
[1719379516651,7.3052,136.89,136.85,0.17]
[1719379516828,7.3052,136.89,136.84,7.3076]
[1719379518041,15.01411328,136.9,136.84,7.3076]
[1719379518347,7.70941328,136.9,136.85,2.31815989]
[1719379518535,15.01421328,136.9,136.86,0.17]
[1719379518739,7.70941328,136.9,136.86,0.47579681]
[1719379519126,7.70941328,136.9,136.85,1.32756944]
[1719379519451,7.70941328,136.9,136.82,6.6633]
[1719379519652,7.3055,136.89,136.83,7.3082]
[1719379519836,15.01401328,136.9,136.84,7.3074]
[1719379520159,7.306,136.88,136.82,24.9346]
[1719379520681,7.306,136.88,136.82,32.2431]
[1719379520855,7.306,136.88,136.83,7.6481]
[1719379521834,7.3052,136.89,136.83,7.6481]
[1719379522052,7.70941328,136.9,136.84,18.2686]
[1719379522350,15.01411328,136.9,136.85,0.34]
[1719379522541,15.01411328,136.9,136.85,7.647]
[1719379524146,15.01411328,136.9,136.85,0.34]
[1719379524338,7.70941328,136.9,136.85,0.34]
[1719379525052,7.3052,136.89,136.85,0.34]
[1719379525450,7.70941328,136.9,136.85,0.34]
[1719379525640,7.62061028,136.93,136.85,7.6471]
[1719379525850,15.33002356,136.93,136.85,7.6471]
[1719379526050,7.3047,136.9,136.86,5.3093541]
[1719379526460,7.3051,136.89,136.86,5.3093541]
[1719379526656,7.3051,136.89,136.85,0.34]
[1719379528362,7.62229331,136.91,136.82,6.6633]
[1719379528635,15.33170659,136.91,136.82,6.6633]
[1719379528962,7.70941328,136.9,136.82,6.6633]
[1719379529343,7.3071,136.86,136.82,6.6633]
[1719379530635,7.3073,136.85,136.82,6.6633]
[1719379530843,30.0,136.84,136.75,0.849019]
[1719379531042,7.3089,136.82,136.77,7.3114]
[1719379531355,30.0,136.84,136.75,22.789019]
[1719379531663,15.38692092,136.85,136.8,7.3098]
[1719379531864,7.3073,136.85,136.8,7.3098]
[1719379532372,7.3084,136.83,136.78,7.3108]
[1719379532548,18.2672,136.86,136.8,6.4102]
[1719379532863,7.3093,136.82,136.8,6.4102]
[1719379533248,7.3084,136.83,136.8,6.4102]
[1719379534965,7.3089,136.82,136.8,6.4102]
[1719379535867,26.34682092,136.86,136.76,15.1384]
[1719379535868,7.3105,136.79,136.76,21.3627]
[1719379536265,7.31,136.8,136.76,21.3627]
[1719379536444,26.34702092,136.86,136.76,21.3627]
[1719379536646,26.34702092,136.86,136.77,25.5897]
[1719379536842,7.3087,136.83,136.77,25.5897]
[1719379537079,26.34702092,136.86,136.77,25.5897]
[1719379537080,7.3089,136.82,136.77,25.5897]
[1719379537279,8.07962092,136.86,136.76,21.3627]
[1719379537575,7.3076,136.85,136.78,18.2766]
[1719379537873,7.3078,136.84,136.79,7.4801]
[1719379538082,8.07962092,136.86,136.8,18.4444]
[1719379538386,7.3074,136.85,136.81,0.17]
[1719379538949,8.07962092,136.86,136.81,0.17]
[1719379539349,7.3083,136.83,136.81,0.17]
[1719379540375,7.3083,136.83,136.8,0.17]
[1719379540550,7.3083,136.83,136.79,0.34]
[1719379540752,7.3083,136.83,136.79,5.54170438]
[1719379541056,26.34682092,136.86,136.78,5.38857832]
[1719379541366,7.3094,136.81,136.76,46.9543]
[1719379541571,7.3089,136.82,136.77,7.3114]
[1719379542364,7.3089,136.82,136.78,0.34]
[1719379544254,7.3089,136.82,136.78,7.651]
[1719379545073,7.3077,136.85,136.78,18.6167]
[1719379545264,7.3076,136.85,136.8,7.3098]
[1719379545471,7.3076,136.85,136.81,0.34]
[1719379545674,7.3079,136.84,136.81,0.34]
[1719379545977,7.3074,136.85,136.81,0.34]
[1719379546175,7.3074,136.85,136.81,3.54095105]
[1719379546377,7.3074,136.85,136.81,7.08540265]
[1719379546579,7.3074,136.85,136.81,0.34]
[1719379547283,7.3084,136.83,136.81,0.34]
[1719379548570,7.3084,136.83,136.8,0.34]
[1719379549675,7.309,136.82,136.78,18.2767]
[1719379550261,7.3097,136.81,136.76,21.3627]
[1719379550559,7.6134586,136.84,136.76,21.3627]
[1719379550773,15.69307952,136.84,136.76,21.3627]
[1719379551272,18.2725,136.82,136.76,21.3627]
[1719379551471,7.3113,136.78,136.75,0.849019]
[1719379552369,7.3117,136.77,136.75,0.849019]
[1719379553184,7.3108,136.79,136.75,0.849019]
[1719379553477,26.35142092,136.83,136.75,7.66043022]
[1719379553781,7.31,136.8,136.75,12.79094999]
[1719379554161,7.3095,136.81,136.76,7.4819]
[1719379554376,7.3099,136.8,136.76,0.17]
[1719379554583,7.3095,136.81,136.76,7.6519]
[1719379554782,7.3101,136.8,136.76,0.34]
[1719379555077,7.6134586,136.84,136.78,15.8208]
[1719379555282,7.6134586,136.84,136.79,1.89111424]
[1719379555686,7.6134586,136.84,136.78,15.8208]
[1719379555872,7.3101,136.8,136.78,15.8208]
[1719379556066,18.2713,136.83,136.78,15.8208]
[1719379556267,7.3096,136.81,136.78,15.8208]
[1719379556784,25.8832586,136.84,136.77,6.6264]
[1719379557082,33.96287952,136.84,136.77,6.6264]
[1719379557281,7.3107,136.79,136.77,6.6264]
[1719379558172,7.3107,136.79,136.75,16.172919]
[1719379559376,7.3114,136.78,136.75,16.172919]
[1719379560082,7.3114,136.78,136.75,23.15363728]
[1719379560782,7.3117,136.77,136.75,0.849019]
[1719379560989,7.312,136.76,136.75,0.849019]
[1719379562691,27.312,136.76,136.75,0.849019]
[1719379563876,15.39042092,136.79,136.75,7.215619]
[1719379564075,7.59850326,136.8,136.75,9.74726211]
[1719379564392,20.0,136.79,136.75,7.215619]
[1719379564890,27.3106,136.79,136.75,7.215619]
[1719379565587,7.3111,136.78,136.75,7.215619]
[1719379566092,38.2762,136.79,136.75,0.849019]
[1719379566296,7.312,136.76,136.75,0.849019]
[1719379566590,27.312,136.76,136.75,0.849019]
[1719379567171,20.0,136.76,136.75,0.849019]
[1719379568070,27.312,136.76,136.75,0.849019]
[1719379569578,34.92538672,136.76,136.75,0.849019]
[1719379570073,43.00500764,136.76,136.75,0.849019]
[1719379570469,73.00500764,136.76,136.75,1.9e-05]
[1719379570675,18.2863,136.72,136.64,6.4184]
[1719379570882,7.3164,136.68,136.65,5.70202766]
[1719379571075,7.316,136.69,136.65,5.70202766]
[1719379571286,7.3176,136.66,136.64,5.70359864]
[1719379571485,18.2889,136.7,136.62,0.849019]
[1719379571895,7.3182,136.65,136.62,0.849019]
[1719379572204,7.3176,136.66,136.62,0.349019]
[1719379572375,18.2889,136.7,136.62,24.38033858]
[1719379572572,7.3157,136.7,136.64,7.3183]
[1719379572775,8.07962092,136.75,136.66,7.3171]
[1719379573082,7.3152,136.71,136.66,7.3173]
[1719379573273,7.3179,136.65,136.62,0.349019]
[1719379573479,7.3178,136.66,136.62,0.23972313]
[1719379573772,8.07962092,136.71,136.62,9.5570227]
[1719379573974,7.3165,136.68,136.63,3.60931077]
[1719379574196,26.36722092,136.71,136.63,3.60931077]
[1719379574492,26.36722092,136.71,136.64,7.3184]
[1719379574493,7.3161,136.69,136.64,7.3184]
[1719379574695,15.39442092,136.71,136.66,7.3173]
[1719379574895,7.3153,136.7,136.65,18.4639]
[1719379575074,7.3147,136.71,136.65,18.4639]
[1719379575392,26.36332092,136.74,136.65,18.2939]
[1719379575589,26.36332092,136.74,136.62,0.23972313]
[1719379575590,7.3175,136.66,136.62,1.9987904]
[1719379575897,7.3175,136.66,136.62,3.47052167]
[1719379576088,7.3168,136.67,136.62,10.79002167]
[1719379577289,26.36472092,136.73,136.63,18.2968]
[1719379577489,7.3165,136.68,136.64,0.17]
[1719379578181,7.3157,136.7,136.65,7.3179]
[1719379578383,7.3158,136.69,136.64,13.83112883]
[1719379578896,26.36472092,136.73,136.64,0.34]
[1719379579079,26.36472092,136.73,136.64,7.6583]
[1719379579080,7.3163,136.69,136.64,7.6583]
[1719379579486,7.3163,136.68,136.64,0.34]
[1719379579683,7.3159,136.69,136.64,7.6584]
[1719379579901,7.3164,136.68,136.65,0.70316759]
[1719379580300,7.3169,136.67,136.65,0.70316759]
[1719379580488,7.3165,136.68,136.65,0.70316759]
[1719379580795,7.3174,136.66,136.65,2.430099]
[1719379581500,24.5924,136.65,136.62,0.23972313]
[1719379582590,15.39862092,136.63,136.62,0.23972313]
[1719379582916,6.4231742,136.69,136.62,0.23972313]
[1719379582917,7.3186,136.64,136.62,0.23972313]
[1719379583229,7.319,136.63,136.62,0.23972313]
[1719379584178,7.319,136.63,136.62,2.313e-05]
[1719379584395,7.319,136.63,136.52,6.0918]
[1719379584396,30.56092092,136.63,136.52,6.0918]
[1719379584599,7.3211,136.6,136.54,7.3235]
[1719379584898,7.3207,136.6,136.54,7.3237]
[1719379585103,8.07962092,136.63,136.54,18.3089]
[1719379585104,7.3202,136.61,136.54,18.3089]
[1719379585288,7.3208,136.6,136.55,7.3229]
[1719379585496,8.07962092,136.63,136.52,13.4166]
[1719379585693,8.07962092,136.63,136.53,0.17]
[1719379585926,7.3197,136.62,136.56,7.3224]
[1719379586094,7.3197,136.62,136.55,16.4667]
[1719379586095,18.2929,136.67,136.57,0.17]
[1719379586280,26.37252092,136.67,136.57,0.17]
[1719379586479,8.07962092,136.67,136.58,6.098]
[1719379586808,32.51872092,136.7,136.6,25.6208]
[1719379587041,7.3174,136.66,136.61,7.32]
[1719379587336,7.317,136.67,136.62,0.34]
[1719379587614,7.3178,136.66,136.62,0.34]
[1719379587831,8.07962092,136.69,136.58,6.098]
[1719379588111,8.07962092,136.69,136.61,7.32]
[1719379588426,8.07962092,136.69,136.62,0.34]
[1719379588585,7.3174,136.66,136.62,0.34]
[1719379588902,7.318,136.65,136.59,18.3022]
[1719379589091,7.3186,136.64,136.6,0.34]
[1719379589298,7.3196,136.62,136.59,5.59956063]
[1719379589503,7.3196,136.62,136.58,6.098]
[1719379590691,7.60178105,136.65,136.58,6.098]
[1719379590692,7.3203,136.61,136.58,6.098]
[1719379591198,44.19238105,136.65,136.55,23.0978]
[1719379591511,44.19238105,136.65,136.55,30.421]
[1719379591512,7.3207,136.6,136.55,30.421]
[1719379591696,7.3207,136.6,136.55,23.0978]
[1719379592106,18.2987,136.63,136.55,6.6311]
[1719379592710,7.3215,136.59,136.55,6.6311]
[1719379593114,7.3218,136.58,136.55,6.6311]
[1719379593311,7.3213,136.59,136.55,6.6311]
[1719379593624,18.2987,136.63,136.55,6.6311]
[1719379593625,7.3208,136.6,136.55,6.6311]
[1719379593795,15.68140197,136.65,136.55,24.9389]
[1719379594321,7.3202,136.61,136.56,7.3227]
[1719379594506,7.3207,136.6,136.55,32.2621]
[1719379595222,33.97850197,136.65,136.55,24.9389]
[1719379595394,33.97850197,136.65,136.57,7.3218]
[1719379595395,7.3197,136.62,136.57,7.3218]
[1719379595595,15.68140197,136.65,136.56,0.34]
[1719379596206,7.3196,136.62,136.57,7.3217]
[1719379596623,7.3191,136.63,136.58,7.6616]
[1719379597132,7.60178105,136.65,136.58,0.34]
[1719379597601,25.89768105,136.65,136.55,6.6311]
[1719379598310,7.3185,136.64,136.55,6.6311]
[1719379598640,7.3184,136.65,136.6,7.3206]
[1719379598998,7.3185,136.64,136.59,22.5267]
[1719379599429,7.61502574,136.67,136.59,15.2057]
[1719379599944,7.3196,136.62,136.59,15.2057]
[1719379600107,7.3191,136.63,136.59,15.2057]
[1719379600310,7.3195,136.62,136.59,15.2057]
[1719379600510,7.61502574,136.67,136.59,15.2057]
[1719379600511,18.297,136.64,136.59,15.2057]
[1719379600738,7.61502574,136.67,136.59,15.2057]
[1719379601613,25.90812574,136.67,136.59,15.2057]
[1719379602053,7.61502574,136.67,136.59,15.2057]
[1719379602214,7.3201,136.61,136.59,15.2057]
[1719379602540,18.2955,136.65,136.56,15.484]
[1719379603282,7.3206,136.6,136.56,15.484]
[1719379603445,15.24994159,136.67,136.55,6.6311]
[1719379603747,7.3217,136.58,136.55,6.6311]
[1719379604104,7.3219,136.58,136.55,6.6311]
[1719379604308,7.3213,136.59,136.55,6.6311]
[1719379604741,18.2982,136.63,136.53,33.6065]
[1719379604916,7.3223,136.57,136.53,33.6065]
[1719379605311,7.3223,136.57,136.53,40.9308]
[1719379605516,7.3218,136.58,136.53,40.9308]
[1719379605743,25.93311585,136.63,136.53,33.6065]
[1719379605920,7.3216,136.59,136.54,7.3238]
[1719379607531,7.3216,136.59,136.53,33.6065]
[1719379607532,7.3207,136.6,136.55,7.3233]
[1719379607863,7.63491585,136.63,136.59,7.3209]
[1719379608163,7.3206,136.6,136.55,7.3229]
[1719379608531,7.3213,136.59,136.54,25.9724]
[1719379608730,7.3217,136.58,136.54,18.4787]
[1719379609033,7.3217,136.58,136.54,0.17]
[1719379609257,7.3229,136.56,136.53,15.296]
[1719379609965,18.3021,136.6,136.51,32.2356]
[1719379610265,7.3231,136.56,136.51,32.2356]
[1719379610446,7.3223,136.57,136.52,7.3247]
[1719379610955,7.3223,136.57,136.53,7.3243]
[1719379611141,7.3218,136.58,136.53,7.3243]
[1719379611332,7.60208378,136.62,136.54,7.3233]
[1719379611657,7.60208378,136.62,136.53,18.3096]
[1719379612139,18.3015,136.61,136.51,6.5974]
[1719379612539,7.3234,136.55,136.51,6.5974]
[1719379612733,7.3229,136.56,136.51,13.9227]
[1719379612934,7.3233,136.55,136.51,6.5974]
[1719379613238,7.3233,136.55,136.51,12.46070782]
[1719379613434,7.3233,136.55,136.51,19.78610782]
[1719379613757,7.3227,136.57,136.52,5.90376201]
[1719379614054,7.3229,136.56,136.51,13.9228]
[1719379614357,7.3229,136.56,136.51,13.9227]
[1719379614572,7.3229,136.56,136.52,2.96129162]
[1719379614773,7.3229,136.56,136.51,13.9227]
[1719379614974,7.3229,136.56,136.51,19.70012175]
[1719379615173,7.3229,136.56,136.51,20.69012175]
[1719379615475,7.3244,136.53,136.51,6.5974]
[1719379615971,7.3239,136.54,136.49,13.5885]
[1719379616270,7.325,136.52,136.49,6.2622]
[1719379616573,18.306,136.57,136.49,6.2622]
[1719379616871,7.3228,136.56,136.51,7.3252]
[1719379617277,7.3237,136.55,136.5,7.3257]
[1719379617848,7.3239,136.54,136.49,31.9044]
[1719379618073,7.3234,136.55,136.5,7.3258]
[1719379618297,7.3239,136.54,136.49,31.9044]
[1719379618477,34.8317,136.58,136.49,31.9044]
[1719379618478,7.3234,136.55,136.5,7.3259]
[1719379619677,34.8317,136.58,136.51,7.3254]
[1719379619678,7.61547926,136.56,136.51,7.3254]
[1719379619873,7.3229,136.56,136.51,7.3254]
[1719379620275,25.91816656,136.59,136.49,24.7481]
[1719379620574,25.91816656,136.59,136.5,7.6658]
[1719379620575,7.3237,136.55,136.5,7.6658]
[1719379620753,7.3247,136.53,136.5,0.34]
[1719379620959,15.24978241,136.59,136.5,18.6543]
[1719379621150,7.3227,136.56,136.52,7.3247]
[1719379621354,7.3227,136.56,136.51,7.3252]
[1719379622570,7.3223,136.57,136.53,15.8563]
[1719379623283,7.63491585,136.59,136.54,0.17]
[1719379623478,14.93184592,136.61,136.56,7.3226]
[1719379623661,7.3206,136.6,136.56,7.3226]
[1719379623974,7.61139872,136.63,136.55,13.5863]
[1719379624160,7.321,136.6,136.55,13.5863]
[1719379624472,7.61139872,136.63,136.55,13.5863]
[1719379624473,7.3212,136.59,136.55,13.5863]
[1719379624679,18.2997,136.62,136.55,6.2631]
[1719379624880,7.3215,136.59,136.55,6.2631]
[1719379625376,7.3207,136.6,136.56,18.3066]
[1719379625583,7.3212,136.59,136.55,13.5863]
[1719379626081,7.3212,136.59,136.55,6.2631]
[1719379626452,7.3212,136.59,136.53,34.1664]
[1719379626453,51.84401457,136.63,136.53,15.8563]
[1719379626778,18.3036,136.59,136.53,15.8563]
[1719379626978,7.3228,136.56,136.53,15.8563]
[1719379627155,7.3218,136.58,136.53,23.1805]
[1719379627582,7.3218,136.58,136.54,7.3238]
[1719379628367,7.3218,136.58,136.53,23.1805]
[1719379628574,7.3222,136.57,136.53,15.8563]
[1719379628977,25.93481585,136.62,136.53,15.8563]
[1719379629659,18.3019,136.6,136.53,15.8563]
[1719379630278,7.3222,136.58,136.53,15.8563]
[1719379630481,7.3222,136.58,136.53,23.1805]
[1719379630684,7.3222,136.57,136.53,15.8563]
[1719379631467,7.3228,136.56,136.53,15.8563]
[1719379631880,7.3234,136.55,136.53,15.8563]
[1719379632074,15.4846,136.61,136.52,6.4283]
[1719379632282,18.3082,136.56,136.49,15.6546]
[1719379632500,7.3247,136.53,136.49,15.6546]
[1719379633194,7.3238,136.55,136.49,15.6546]
[1719379633487,7.3225,136.57,136.52,18.3114]
[1719379633667,7.63491585,136.6,136.49,15.6546]
[1719379633668,7.3234,136.55,136.49,15.6546]
[1719379633869,7.324,136.54,136.5,0.34]
[1719379634077,7.3246,136.53,136.49,33.9703]
[1719379634376,7.3245,136.53,136.49,15.6546]
[1719379634687,7.3245,136.53,136.49,21.23966136]
[1719379634897,7.3255,136.51,136.49,15.6546]
[1719379635273,7.3251,136.52,136.49,15.6546]
[1719379635681,7.326,136.5,136.48,7.239919]
[1719379635872,18.3102,136.54,136.48,0.849019]
[1719379635873,7.3255,136.51,136.48,0.849019]
[1719379636687,7.3239,136.54,136.49,7.3264]
[1719379636993,7.324,136.54,136.49,7.3264]
[1719379637372,7.3244,136.53,136.49,7.3264]
[1719379637883,7.3244,136.53,136.48,26.493119]
[1719379638089,7.3249,136.52,136.48,19.166319]
[1719379638595,7.3245,136.53,136.48,26.493319]
[1719379639167,7.6089498,136.56,136.49,0.17]
[1719379639393,7.6089498,136.56,136.5,7.3254]
[1719379639780,7.6089498,136.56,136.49,0.34]
[1719379639781,7.3238,136.54,136.49,7.6663]
[1719379640191,7.6089498,136.56,136.49,0.34]
[1719379640373,7.6089498,136.56,136.5,7.3259]
[1719379640577,7.3234,136.55,136.5,7.3259]
[1719379641291,7.3234,136.55,136.51,6.5685]
[1719379642493,7.6089498,136.56,136.51,6.5685]
[1719379642684,7.3227,136.57,136.52,16.7121]
[1719379642888,7.3227,136.57,136.53,7.3243]
[1719379643200,7.3228,136.56,136.52,42.3489]
[1719379643409,15.24227929,136.6,136.52,16.7121]
[1719379643410,18.3035,136.59,136.52,16.7121]
[1719379643607,7.3228,136.56,136.52,16.7121]
[1719379644305,7.3228,136.56,136.52,24.037]
[1719379644718,15.24227929,136.6,136.53,7.324]
[1719379644719,7.322,136.58,136.53,7.324]
[1719379645014,15.24227929,136.6,136.55,7.3232]
[1719379645015,14.95551585,136.6,136.55,7.3232]
[1719379645387,14.95551585,136.6,136.56,3.09975828]
[1719379645588,7.3206,136.6,136.55,7.3232]
[1719379645892,7.59970368,136.62,136.56,6.8299]
[1719379646223,7.3191,136.63,136.59,18.3022]
[1719379646523,7.63491585,136.64,136.58,16.4685]
[1719379646524,7.3196,136.62,136.58,16.4685]
[1719379646882,7.3191,136.63,136.58,23.7901]
[1719379647085,7.59827112,136.65,136.61,7.3196]
[1719379647316,7.317,136.67,136.62,7.6595]
[1719379647487,7.3164,136.68,136.63,7.3189]
[1719379647805,7.3164,136.68,136.63,13.8467]
[1719379648186,7.3175,136.66,136.63,6.5278]
[1719379648794,7.317,136.67,136.63,6.5278]
[1719379649801,7.63491585,136.7,136.63,13.8468]
[1719379650113,7.3165,136.68,136.63,13.8468]
[1719379650306,7.3168,136.67,136.63,6.5278]
[1719379651496,7.3165,136.68,136.63,13.8467]
[1719379651910,7.3164,136.68,136.64,0.17]
[1719379652110,7.3164,136.68,136.64,0.34]
[1719379652412,7.3169,136.67,136.64,0.34]
[1719379653010,7.3169,136.67,136.63,6.5278]
[1719379653211,7.63491585,136.7,136.6,6.5203]
[1719379653517,7.3201,136.61,136.6,6.5203]
[1719379653715,7.3194,136.63,136.6,6.5203]
[1719379653899,7.32,136.62,136.6,6.5203]
[1719379654097,7.3201,136.61,136.6,6.5203]
[1719379654997,7.3196,136.62,136.6,6.5203]
[1719379655833,7.3191,136.63,136.6,6.5203]
[1719379656316,7.3196,136.62,136.6,6.5203]
[1719379656498,7.3192,136.63,136.6,6.5203]
[1719379656699,7.3196,136.62,136.6,6.5203]
[1719379657317,7.3189,136.64,136.6,6.5203]
[1719379658614,7.3196,136.62,136.6,6.5203]
[1719379659115,7.319,136.63,136.6,6.5203]
[1719379659414,258.6,136.65,136.6,6.5203]
[1719379659617,7.3196,136.62,136.6,6.5203]
[1719379659827,7.3202,136.61,136.58,16.4685]
[1719379661009,7.3197,136.62,136.58,16.4685]
[1719379661523,18.2968,136.64,136.58,16.4685]
[1719379661722,7.3213,136.59,136.57,0.34]
[1719379662028,18.2992,136.62,136.57,0.34]
[1719379662221,295.1904,136.65,136.56,6.6429]
[1719379662222,7.3207,136.6,136.56,6.6429]
[1719379662521,18.2982,136.63,136.56,6.6429]
[1719379662729,7.63491585,136.65,136.56,6.6429]
[1719379662909,7.3212,136.59,136.56,6.6429]
[1719379663101,7.3217,136.58,136.56,6.6429]
[1719379663608,20.0,136.64,136.56,6.6429]
[1719379664007,7.3216,136.59,136.55,15.6459]
[1719379664223,7.3218,136.58,136.55,15.6459]
[1719379664422,18.2979,136.63,136.55,15.6459]
[1719379665125,7.321,136.6,136.55,22.9689]
[1719379665315,7.3212,136.59,136.55,15.6459]
[1719379666017,18.2979,136.63,136.55,15.6459]
[1719379666329,7.3207,136.6,136.56,0.17]
[1719379666534,7.3202,136.61,136.56,7.6627]
[1719379666711,7.3194,136.63,136.56,18.6459]
[1719379666916,7.3197,136.62,136.56,18.6459]